bitfinex/quotes_SOLUSD_20220207
["timestamp","ask_amount","ask_price","bid_price","bid_amount"]
[1644248985727,104.52469065,121.35,121.26,68.83862061]
[1644248985919,104.52469065,121.35,121.24,22.3835]
[1644248986520,24.0955,121.35,121.24,22.3835]
[1644248986723,24.0955,121.35,121.24,24.28919221]
[1644248986922,23.8455,121.35,121.24,24.28919221]
[1644248987120,23.8455,121.35,121.24,24.53919221]
[1644248987524,29.8996317,121.34,121.25,36.61612892]
[1644248987721,29.8996317,121.34,121.26,12.3717]
[1644248987922,29.8996317,121.34,121.27,37.12902854]
[1644248988120,29.8996317,121.34,121.26,12.3717]
[1644248988323,29.8996317,121.34,121.25,0.25]
[1644248988521,29.8996317,121.34,121.24,1.90569221]
[1644248989023,29.8996317,121.34,121.25,36.09106722]
[1644248989822,80.1696317,121.34,121.24,1.90569221]
[1644248990023,115.2756317,121.34,121.2,1.91114421]
[1644248990221,115.2756317,121.34,121.18,14.132]
[1644248990222,50.27,121.32,121.19,10.01]
[1644248990623,2.14682857,121.31,121.19,10.01]
[1644248990823,4.06815174,121.3,121.2,42.67156922]
[1644248991025,16.44685174,121.3,121.2,55.04936922]
[1644248991225,12.3787,121.3,121.2,55.29936922]
[1644248991426,12.3787,121.3,121.2,55.04936922]
[1644248992225,33.04101228,121.29,121.2,55.04936922]
[1644248992425,12.3787,121.3,121.2,55.04936922]
[1644248993527,46.29440764,121.31,121.2,55.04936922]
[1644248993727,33.91780764,121.31,121.2,55.04936922]
[1644248994129,36.5162131,121.31,121.2,55.04936922]
[1644248994927,12.3779,121.3,121.2,55.04936922]
[1644248995328,36.5162131,121.31,121.2,55.04936922]
[1644248995529,86.7862131,121.31,121.2,55.29936922]
[1644248996329,86.7862131,121.31,121.2,12.3778]
[1644248996532,4.49523403,121.3,121.17,10.01]
[1644248996733,52.61840546,121.29,121.15,10.01]
[1644248996932,4.124,121.28,121.15,10.01]
[1644248997131,46.0476,121.28,121.15,10.01]
[1644248997332,46.0476,121.28,121.16,39.00385287]
[1644248997633,46.0476,121.28,121.18,43.76883129]
[1644248997832,58.4278,121.28,121.19,12.3787]
[1644248998032,58.4278,121.28,121.2,43.0421762]
[1644248998433,46.0476,121.28,121.2,43.0421762]
[1644248998634,2.34840546,121.31,121.2,53.0521762]
[1644248998835,2.34840546,121.31,121.2,71.6807762]
[1644248999034,2.34840546,121.33,121.2,71.6807762]
[1644248999336,2.34840546,121.34,121.2,65.6807762]
[1644248999535,30.47894664,121.32,121.2,65.6807762]
[1644248999734,32.8273521,121.32,121.2,65.6807762]
[1644248999934,83.0973521,121.32,121.2,65.6807762]
[1644249000134,95.7236521,121.32,121.2,65.6807762]
[1644249000733,95.7236521,121.32,121.2,65.4307762]
[1644249000936,3.4888368,121.3,121.2,65.4307762]
[1644249001838,3.4888368,121.3,121.2,55.4207762]
[1644249002136,66.1374368,121.3,121.2,55.4207762]
[1644249002335,68.48584226,121.3,121.19,12.3795]
[1644249002534,68.48584226,121.3,121.17,11.9]
[1644249002735,4.70016476,121.29,121.17,11.9]
[1644249002936,50.27,121.28,121.15,35.2391]
[1644249003135,23.0085,121.28,121.15,35.4891]
[1644249003335,26.73896629,121.27,121.16,39.13791521]
[1644249003536,73.2785,121.28,121.18,40.12171164]
[1644249003957,23.0085,121.28,121.18,40.12171164]
[1644249004336,25.15532857,121.28,121.18,40.12171164]
[1644249004539,56.33139468,121.28,121.18,40.12171164]
[1644249004938,12.381,121.27,121.18,52.50221164]
[1644249005139,23.2585,121.28,121.18,52.50221164]
[1644249005339,23.0085,121.28,121.18,52.50221164]
[1644249005638,23.0085,121.28,121.18,52.75221164]
[1644249006439,1.87526552,121.27,121.18,52.50221164]
[1644249006738,23.0085,121.28,121.18,62.41221164]
[1644249006938,85.6584,121.28,121.18,62.41221164]
[1644249007141,85.9084,121.28,121.18,62.41221164]
[1644249007538,31.9099856,121.27,121.18,62.41221164]
[1644249008340,31.9099856,121.27,121.18,52.50221164]
[1644249008543,32.1599856,121.27,121.18,52.50221164]
[1644249008742,0.25,121.27,121.18,52.50221164]
[1644249009441,23.0085,121.28,121.18,62.41221164]
[1644249009648,23.0085,121.28,121.18,62.66221164]
[1644249009843,75.33400546,121.31,121.18,62.66221164]
[1644249010044,72.9856,121.31,121.18,62.66221164]
[1644249010242,22.7156,121.31,121.18,62.66221164]
[1644249010444,22.7156,121.31,121.18,68.66221164]
[1644249010644,29.33386559,121.31,121.18,68.66221164]
[1644249010945,22.7156,121.31,121.18,70.57335585]
[1644249011544,24.86242857,121.31,121.18,70.57335585]
[1644249012345,22.7156,121.31,121.18,70.57335585]
[1644249012546,136.4973,121.32,121.18,70.57335585]
[1644249012847,2.34840546,121.35,121.19,123.89]
[1644249013046,2.34840546,121.36,121.23,12.3696]
[1644249013246,2.34840546,121.37,121.24,56.77475175]
[1644249013446,2.34840546,121.38,121.24,58.68589596]
[1644249013647,2.34840546,121.38,121.26,123.89]
[1644249013846,2.34845556,121.4,121.26,133.304]
[1644249014046,2.34845556,121.4,121.27,135.71114421]
[1644249014246,5.01e-05,121.4,121.28,43.87816694]
[1644249014446,5.01e-05,121.4,121.29,9.91]
[1644249014649,5.01e-05,121.4,121.29,17.82660245]
[1644249014846,5.01e-05,121.4,121.29,18.07660245]
[1644249015047,5.01e-05,121.4,121.3,1.91660245]
[1644249015247,5.01e-05,121.4,121.31,22.2714]
[1644249015653,5.01e-05,121.4,121.32,46.86472076]
[1644249015849,5.01e-05,121.4,121.33,9.91]
[1644249016248,5.01e-05,121.4,121.34,12.3625]
[1644249016449,5.01e-05,121.4,121.34,22.2725]
[1644249016648,5.01e-05,121.4,121.34,22.5225]
[1644249016849,5.01e-05,121.4,121.35,1.91660245]
[1644249017054,5.01e-05,121.4,121.36,9.91]
[1644249017252,5.01e-05,121.4,121.37,9.91]
[1644249018151,1.59845556,121.46,121.37,9.91]
[1644249018350,6.18045,121.44,121.37,10.16]
[1644249018554,6.18045,121.44,121.37,22.2701]
[1644249018852,6.18045,121.44,121.38,36.85891396]
[1644249019069,6.18045,121.44,121.38,46.76891396]
[1644249019267,6.18045,121.44,121.38,47.01891396]
[1644249019668,0.1,121.48,121.38,67.04492123]
[1644249019871,0.0610721,121.51,121.38,67.29492123]
[1644249020269,0.0610721,121.51,121.38,67.04492123]
[1644249020468,0.1610721,121.51,121.38,67.04492123]
[1644249020669,9.33376206,121.5,121.38,59.12801396]
[1644249020871,13.35461461,121.5,121.38,59.12801396]
[1644249021069,0.1,121.49,121.38,59.12801396]
[1644249021470,0.0610721,121.51,121.39,1.91690727]
[1644249021669,0.0610721,121.51,121.42,12.3536]
[1644249021870,0.0610721,121.51,121.43,9.91]
[1644249022070,0.0610721,121.51,121.44,9.91]
[1644249022273,0.0610721,121.51,121.44,58.61258938]
[1644249022670,0.0610721,121.51,121.44,71.21528938]
[1644249022871,0.0610721,121.51,121.45,1.91690727]
[1644249023070,0.0610721,121.51,121.46,9.91]
[1644249023269,0.0610721,121.51,121.46,10.16]
[1644249023469,0.0610721,121.51,121.48,45.5287244]
[1644249023671,0.0610721,121.51,121.5,47.29550098]
[1644249023870,0.0610721,121.51,121.5,57.20550098]
[1644249024173,0.0610721,121.51,121.5,9.91]
[1644249024869,0.0610721,121.51,121.44,43.07970727]
[1644249025073,0.0610721,121.51,121.48,9.91]
[1644249025670,0.0610721,121.51,121.42,6.0]
[1644249025970,0.0610721,121.51,121.43,9.91]
[1644249026171,0.0610721,121.51,121.44,9.91]
[1644249027270,0.0610721,121.51,121.41,9.91]
[1644249027470,28.8501309,121.5,121.41,9.91]
[1644249027673,0.1,121.49,121.41,9.91]
[1644249027870,0.1,121.49,121.42,38.21359416]
[1644249029274,0.1,121.5,121.42,38.21359416]
[1644249030076,0.1,121.5,121.41,9.91]
[1644249030280,12.4584,121.5,121.41,9.91]
[1644249030475,0.1,121.49,121.41,9.91]
[1644249031075,3.21259039,121.49,121.41,9.91]
[1644249031474,0.1,121.49,121.42,38.71517777]
[1644249032074,0.1,121.49,121.4,9.91]
[1644249032474,0.1,121.49,121.4,10.16]
[1644249032675,0.1,121.49,121.4,9.91]
[1644249033076,27.5072018,121.49,121.41,39.75389088]
[1644249033276,0.1,121.48,121.41,49.66389088]
[1644249034576,0.1,121.48,121.41,9.91]
[1644249035777,0.1,121.48,121.42,38.64470771]
[1644249035976,12.5181721,121.51,121.42,38.64470771]
[1644249036176,0.1,121.5,121.42,38.64470771]
[1644249036676,0.1,121.5,121.43,9.91]
[1644249036878,0.1,121.5,121.44,45.37134616]
[1644249037377,0.0610721,121.51,121.43,9.91]
[1644249037378,0.1610721,121.51,121.43,9.91]
[1644249037579,0.1610721,121.51,121.41,9.91]
[1644249037881,0.1610721,121.51,121.39,9.91]
[1644249038278,50.27,121.5,121.39,9.91]
[1644249038478,0.1,121.49,121.4,39.44928519]
[1644249039681,3.45370407,121.5,121.4,39.44928519]
[1644249039881,3.55370407,121.5,121.4,39.44928519]
[1644249041181,15.91190407,121.5,121.39,12.3576]
[1644249041382,0.1,121.49,121.39,12.3576]
[1644249041584,0.1,121.49,121.37,22.2693]
[1644249041785,112.5,121.47,121.37,9.91]
[1644249041983,172.431,121.47,121.34,9.91]
[1644249042184,172.431,121.47,121.37,41.97751182]
[1644249042185,78.64932186,121.46,121.37,41.97751182]
[1644249042385,78.64932186,121.46,121.34,9.91]
[1644249042986,12.3641,121.44,121.34,9.91]
[1644249043184,11.8641,121.44,121.34,9.91]
[1644249043383,5.58846158,121.43,121.35,35.05912364]
[1644249046490,11.8641,121.44,121.35,35.05912364]
[1644249046690,35.6238,121.46,121.35,35.30912364]
[1644249046891,2.34535405,121.45,121.35,35.05912364]
[1644249047091,35.6238,121.46,121.35,35.05912364]
[1644249047490,35.6238,121.46,121.35,44.96912364]
[1644249047690,112.5,121.47,121.36,1.91694476]
[1644249047891,0.1,121.48,121.37,9.91]
[1644249048094,0.1,121.48,121.37,21.024]
[1644249048291,0.1,121.48,121.38,1.91694476]
[1644249048490,0.1,121.48,121.39,9.91]
[1644249048690,0.1,121.48,121.39,51.6463501]
[1644249049091,0.1,121.48,121.39,64.0032501]
[1644249050494,0.1,121.48,121.39,65.92019486]
[1644249050696,4.55282176,121.5,121.39,65.92019486]
[1644249050893,2.34590924,121.49,121.39,65.92019486]
[1644249053094,2.34590924,121.49,121.39,71.97768486]
[1644249053695,33.75321613,121.49,121.39,71.97768486]
[1644249053898,2.44590924,121.48,121.39,71.97768486]
[1644249054296,0.1,121.48,121.39,71.97768486]
[1644249054898,0.1,121.5,121.39,71.97768486]
[1644249055098,2.349234,121.49,121.39,57.4538401]
[1644249055499,2.349234,121.49,121.39,47.5438401]
[1644249055698,31.57864666,121.48,121.39,47.5438401]
[1644249055905,2.349234,121.47,121.39,47.5438401]
[1644249056300,2.38913678,121.46,121.39,47.5438401]
[1644249056700,2.38913678,121.46,121.39,6.05749]
[1644249057105,4.53596535,121.46,121.35,70.7008]
[1644249057303,2.35024218,121.45,121.35,9.91]
[1644249057703,2.35024218,121.45,121.36,40.38981187]
[1644249058003,2.35006924,121.46,121.36,50.29981187]
[1644249058205,42.8693778,121.49,121.36,62.66111187]
[1644249058408,2.34997513,121.48,121.36,62.66111187]
[1644249058704,29.57236258,121.47,121.36,64.58907622]
[1644249058906,41.93396258,121.47,121.36,62.66111187]
[1644249059106,4.39542086,121.45,121.36,62.66111187]
[1644249059507,4.39542086,121.45,121.36,12.3613]
[1644249059709,54.66542086,121.45,121.34,22.2728]
[1644249059907,2.35005373,121.44,121.34,28.2728]
[1644249060327,4.39542086,121.45,121.34,34.33278]
[1644249060526,4.39542086,121.45,121.35,42.30314138]
[1644249060726,24.8436,121.47,121.38,12.359]
[1644249060928,24.8436,121.47,121.38,22.269]
[1644249061129,2.34941872,121.46,121.38,22.269]
[1644249061328,2.34941872,121.46,121.38,22.519]
[1644249061526,24.8436,121.47,121.38,24.19696435]
[1644249061726,27.04990448,121.46,121.38,64.79754838]
[1644249062328,27.04990448,121.46,121.38,9.91]
[1644249062527,2.3496776,121.45,121.38,5.05830242]
[1644249063328,6.91787896,121.44,121.38,5.05830242]
[1644249064129,6.91787896,121.44,121.35,41.87466454]
[1644249064330,6.91787896,121.44,121.36,9.91]
[1644249064731,6.91787896,121.44,121.37,35.10675388]
[1644249065231,12.3632,121.45,121.37,35.10675388]
[1644249065831,2.34837188,121.44,121.37,35.10675388]
[1644249066039,2.34837188,121.44,121.37,32.60675388]
[1644249066236,32.63524633,121.44,121.36,9.91]
[1644249066439,45.6120749,121.44,121.36,9.91]
[1644249066639,52.61871843,121.43,121.33,9.91]
[1644249066837,52.61871843,121.43,121.29,9.91]
[1644249066838,12.3688,121.4,121.29,9.91]
[1644249067038,24.0907,121.39,121.29,9.91]
[1644249067237,3.83253711,121.38,121.3,48.07940792]
[1644249067437,3.83253711,121.38,121.29,9.91]
[1644249067838,52.41682857,121.37,121.29,6.06248]
[1644249068437,32.63524633,121.36,121.29,38.32637787]
[1644249068640,32.63524633,121.36,121.25,9.91]
[1644249068837,32.63524633,121.36,121.25,22.2827]
[1644249069536,32.63524633,121.36,121.26,35.00604494]
[1644249069938,82.90524633,121.36,121.26,35.00604494]
[1644249070137,82.90524633,121.36,121.27,6.06348]
[1644249070739,95.27734633,121.36,121.27,6.06348]
[1644249071143,99.39834633,121.36,121.27,6.06348]
[1644249071439,114.0,121.34,121.21,12.376]
[1644249071639,174.18,121.34,121.19,9.91]
[1644249071839,164.27,121.34,121.13,12.3981]
[1644249072039,50.27,121.34,121.2,11.38]
[1644249072440,3.83253711,121.33,121.21,38.29671003]
[1644249072640,3.83253711,121.33,121.22,11.88]
[1644249072840,5.00341966,121.33,121.23,47.46271437]
[1644249073041,3.83253711,121.33,121.23,59.34271437]
[1644249073240,5.00341966,121.33,121.23,59.34271437]
[1644249073441,3.83253711,121.33,121.23,59.34271437]
[1644249073843,3.83253711,121.33,121.23,59.83731437]
[1644249074644,54.10253711,121.33,121.21,11.88]
[1644249074842,5.00341966,121.33,121.21,11.88]
[1644249075042,1.17088255,121.33,121.21,24.5061]
[1644249075242,1.17088255,121.34,121.21,24.5061]
[1644249075443,48.43118255,121.35,121.21,24.5061]
[1644249075742,47.2603,121.35,121.21,32.43406435]
[1644249075946,22.6207,121.35,121.21,30.5061]
[1644249076147,22.6207,121.35,121.25,12.3715]
[1644249076343,22.6207,121.35,121.26,11.88]
[1644249076943,1.17088255,121.38,121.26,11.88]
[1644249077143,7.35133255,121.38,121.27,39.53366188]
[1644249077443,6.18045,121.38,121.29,44.47992382]
[1644249077643,6.18045,121.38,121.3,11.88]
[1644249078347,6.18045,121.38,121.31,47.89767414]
[1644249078547,6.18045,121.38,121.31,60.26397414]
[1644249079151,6.18045,121.38,121.31,72.14397414]
[1644249079348,6.18045,121.38,121.31,72.39397414]
[1644249079948,6.18045,121.37,121.31,72.39397414]
[1644249080449,2.69105,121.37,121.31,72.39397414]
[1644249080650,1.17088255,121.44,121.31,228.80193849]
[1644249080849,6.18045,121.43,121.31,228.80193849]
[1644249081651,6.18045,121.43,121.31,226.87397414]
[1644249081852,32.73028621,121.42,121.31,226.87397414]
[1644249082251,38.91073621,121.42,121.31,220.87397414]
[1644249084252,6.18045,121.42,121.31,220.87397414]
[1644249084651,50.27,121.41,121.31,24.2463]
[1644249084852,1.17088255,121.39,121.29,12.3678]
[1644249085250,1.17088255,121.39,121.3,11.88]
[1644249085651,49.58998255,121.4,121.31,38.27275695]
[1644249086056,1.17088255,121.4,121.32,14.28861931]
[1644249086253,1.17088255,121.41,121.33,11.88]
[1644249086455,1.17088255,121.42,121.33,1.92311931]
[1644249086654,1.17088255,121.43,121.34,11.82311931]
[1644249086853,1.17088255,121.44,121.35,35.90015331]
[1644249087056,1.17088255,121.45,121.36,22.2581]
[1644249087254,1.17088255,121.45,121.36,24.43121931]
[1644249087455,6.18045,121.44,121.37,1.92311931]
[1644249087658,6.18045,121.44,121.38,9.9]
[1644249087857,1.17088255,121.48,121.38,10.15]
[1644249088057,1.17088255,121.48,121.39,1.92311931]
[1644249088258,1.17088255,121.48,121.4,57.44408656]
[1644249088557,1.17088255,121.5,121.41,1.92311931]
[1644249088757,1.23195465,121.51,121.41,14.39711931]
[1644249088959,1.23195465,121.51,121.42,9.9]
[1644249089157,1.23195465,121.51,121.42,17.82311931]
[1644249089358,1.23195465,121.51,121.43,42.69302143]
[1644249089557,1.95773779,121.56,121.46,53.0]
[1644249089758,0.2442884,121.56,121.47,9.9]
[1644249089958,0.2442884,121.56,121.47,11.82311931]
[1644249090159,0.2442884,121.56,121.47,18.07311931]
[1644249090459,0.2442884,121.56,121.48,40.6079543]
[1644249090661,0.2442884,121.56,121.5,12.346]
[1644249090858,0.2442884,121.56,121.51,9.9]
[1644249091661,0.2442884,121.56,121.52,49.86495509]
[1644249091860,0.2442884,121.56,121.52,59.76495509]
[1644249092061,0.2442884,121.56,121.52,47.42135509]
[1644249092465,0.2442884,121.56,121.46,1.92311931]
[1644249092663,0.2442884,121.56,121.48,12.3479]
[1644249092863,0.2442884,121.56,121.49,9.9]
[1644249093263,0.2442884,121.56,121.49,12.07311931]
[1644249093662,0.2442884,121.56,121.5,39.96284141]
[1644249093864,0.2442884,121.56,121.51,9.9]
[1644249094464,0.2442884,121.56,121.48,9.9]
[1644249095066,0.2442884,121.56,121.49,46.05910031]
[1644249095269,0.2442884,121.56,121.5,9.9]
[1644249096978,0.2442884,121.56,121.45,9.9]
[1644249097171,4.3592884,121.56,121.45,9.9]
[1644249097671,30.00178361,121.55,121.46,48.58208126]
[1644249097872,0.1,121.54,121.47,9.9]
[1644249098273,25.46537646,121.55,121.47,9.9]
[1644249099877,25.46537646,121.55,121.48,41.30024637]
[1644249100477,25.46537646,121.55,121.46,9.9]
[1644249101379,25.46537646,121.55,121.47,34.92765368]
[1644249101591,25.46537646,121.55,121.47,44.82765368]
[1644249102192,25.46537646,121.55,121.47,9.9]
[1644249102392,25.46537646,121.55,121.45,9.9]
[1644249103091,25.46537646,121.55,121.45,6.0]
[1644249103293,25.46537646,121.55,121.45,38.64999637]
[1644249103491,37.81857646,121.55,121.43,9.9]
[1644249103691,37.81857646,121.55,121.43,15.9]
[1644249103891,37.81857646,121.55,121.43,9.9]
[1644249104496,37.81857646,121.55,121.43,49.61114851]
[1644249105091,37.81857646,121.55,121.43,39.71114851]
[1644249105291,37.81857646,121.55,121.42,12.3537]
[1644249105492,61.78697646,121.55,121.43,11.82311931]
[1644249105691,49.43377646,121.55,121.45,12.351]
[1644249106191,49.43377646,121.55,121.45,64.98504476]
[1644249106793,49.43377646,121.55,121.45,58.98504476]
[1644249106995,49.43377646,121.55,121.45,64.98504476]
[1644249107994,0.2442884,121.56,121.46,1.92311931]
[1644249108195,0.2442884,121.56,121.47,9.9]
[1644249108396,0.2442884,121.56,121.48,12.348]
[1644249108597,0.2442884,121.56,121.48,22.248]
[1644249108796,0.2442884,121.56,121.48,9.9]
[1644249108996,30.93968709,121.56,121.46,9.9]
[1644249109398,30.93968709,121.56,121.46,22.2499]
[1644249109602,30.93968709,121.56,121.43,24.3864]
[1644249109798,30.93968709,121.56,121.41,67.22191931]
[1644249109799,81.20968709,121.56,121.41,43.09441931]
[1644249109999,50.27,121.54,121.42,9.9]
[1644249110202,2.35247906,121.53,121.39,50.4991658]
[1644249110805,2.35247906,121.53,121.39,52.42228511]
[1644249111002,27.02315563,121.51,121.41,48.46273963]
[1644249111201,27.26744403,121.51,121.4,12.3559]
[1644249112002,89.89424403,121.51,121.38,22.258]
[1644249112210,94.01124403,121.51,121.38,22.508]
[1644249112704,94.01124403,121.51,121.36,9.9]
[1644249112705,106.0580726,121.51,121.36,9.9]
[1644249112905,12.3623,121.46,121.35,9.9]
[1644249113306,6.02472212,121.45,121.35,9.9]
[1644249113904,6.02472212,121.45,121.35,48.52236297]
[1644249114507,6.02472212,121.45,121.36,1.92311931]
[1644249114907,6.02472212,121.45,121.37,37.55349918]
[1644249115508,47.9451,121.46,121.37,39.47661849]
[1644249115909,47.9451,121.46,121.37,37.55349918]
[1644249116110,47.9451,121.46,121.37,49.91269918]
[1644249116408,25.37135071,121.45,121.37,49.91269918]
[1644249117011,47.9451,121.46,121.37,49.91269918]
[1644249117207,2.326733,121.49,121.37,49.91269918]
[1644249117208,2.326733,121.5,121.38,9.9]
[1644249117411,23.9584884,121.51,121.4,12.3561]
[1644249117608,23.9584884,121.51,121.41,9.9]
[1644249117808,23.9584884,121.51,121.41,12.07311931]
[1644249118010,25.59007257,121.5,121.42,1.92311931]
[1644249118211,25.59007257,121.5,121.42,11.82311931]
[1644249118409,25.59007257,121.5,121.43,43.66865104]
[1644249118609,25.59007257,121.5,121.42,11.82311931]
[1644249119011,25.59007257,121.5,121.42,24.17701931]
[1644249119412,23.9584884,121.51,121.42,24.17701931]
[1644249119612,0.2442884,121.51,121.43,1.92311931]
[1644249119811,0.2442884,121.51,121.44,9.9]
[1644249120513,28.64859391,121.51,121.44,9.9]
[1644249120713,27.64859391,121.51,121.44,9.9]
[1644249120915,28.13717071,121.51,121.44,9.9]
[1644249121313,28.13717071,121.51,121.42,9.9]
[1644249121522,72.36137071,121.51,121.42,9.9]
[1644249122214,84.71797071,121.51,121.42,9.9]
[1644249122616,34.44797071,121.51,121.42,9.9]
[1644249123515,34.44797071,121.51,121.4,22.2565]
[1644249123715,34.44797071,121.51,121.4,67.23777867]
[1644249123916,34.44797071,121.51,121.4,69.16089798]
[1644249124316,34.44797071,121.51,121.4,69.41089798]
[1644249125515,0.4885768,121.51,121.4,69.41089798]
[1644249125719,0.4885768,121.51,121.41,123.75]
[1644249125917,0.4885768,121.51,121.44,12.3472]
[1644249126116,0.4885768,121.51,121.45,9.9]
[1644249126316,0.4885768,121.51,121.45,10.15]
[1644249126517,0.4885768,121.51,121.46,48.78305306]
[1644249126817,0.4885768,121.51,121.47,9.9]
[1644249127018,0.4885768,121.51,121.47,11.81821093]
[1644249127218,0.4885768,121.51,121.47,10.15]
[1644249127621,25.39793292,121.57,121.48,12.3484]
[1644249127622,2.50513292,121.57,121.48,12.3484]
[1644249127820,6.18045,121.56,121.49,9.9]
[1644249128022,6.18045,121.56,121.49,11.81821093]
[1644249128217,6.18045,121.56,121.5,45.15513256]
[1644249128419,6.18045,121.56,121.51,9.9]
[1644249128817,0.17839992,121.57,121.51,22.2452]
[1644249129027,0.17839992,121.57,121.52,1.91821093]
[1644249129219,0.17839992,121.57,121.53,9.9]
[1644249129622,3.48407806,121.65,121.55,105.0]
[1644249129623,2.326733,121.63,121.55,105.0]
[1644249129824,0.52173672,121.6,121.56,9.9]
[1644249132522,0.52173672,121.6,121.57,1.91821093]
[1644249132725,0.52173672,121.6,121.58,9.9]
[1644249133123,0.52173672,121.6,121.58,10.15]
[1644249133623,0.52173672,121.6,121.58,9.9]
[1644249134025,0.52173672,121.6,121.58,22.2376]
[1644249134324,0.32987376,121.6,121.59,1.91821093]
[1644249134524,0.32987376,121.6,121.59,11.81821093]
[1644249134725,0.32987376,121.6,121.59,9.9]
[1644249135331,2.326733,121.69,121.59,9.9]
[1644249135631,4.112,121.71,121.59,18.06821093]
[1644249135824,2.42448155,121.73,121.6,0.32987376]
[1644249136026,2.42448155,121.73,121.61,9.9]
[1644249136226,0.1,121.73,121.61,144.009]
[1644249136424,0.1,121.73,121.62,46.55017871]
[1644249136630,0.1,121.74,121.64,47.72221463]
[1644249136825,0.1,121.74,121.65,9.9]
[1644249137225,0.1,121.74,121.65,10.15]
[1644249137526,0.1,121.74,121.65,9.9]
[1644249137725,19.36220869,121.75,121.65,9.9]
[1644249138127,16.86220869,121.75,121.65,9.9]
[1644249138326,17.50692249,121.75,121.65,9.9]
[1644249138727,4.108,121.74,121.59,6.04752]
[1644249138927,52.511,121.74,121.59,6.04752]
[1644249139127,9.9,121.73,121.52,4.109]
[1644249139326,50.59298802,121.71,121.53,15.95051]
[1644249139530,50.59298802,121.71,121.53,6.05051]
[1644249139531,12.3433,121.68,121.53,6.05051]
[1644249139727,9.9,121.67,121.53,6.05051]
[1644249139928,9.9,121.67,121.47,16.4557]
[1644249139929,14.011,121.67,121.47,16.4557]
[1644249140228,50.48542857,121.66,121.49,9.9]
[1644249140433,20.97420869,121.65,121.49,9.9]
[1644249140629,80.52613726,121.65,121.49,9.9]
[1644249140828,2.14682857,121.64,121.44,16.4608]
[1644249141028,14.013,121.63,121.47,9.9]
[1644249141228,0.30604815,121.61,121.46,9.9]
[1644249141428,14.014,121.6,121.44,6.05499]
[1644249141628,89.24042857,121.6,121.44,6.05499]
[1644249141828,16.86220869,121.57,121.44,6.05499]
[1644249142028,4.115,121.56,121.44,6.05499]
[1644249142233,6.26182857,121.56,121.44,6.05499]
[1644249142431,4.115,121.56,121.44,6.05499]
[1644249143032,7.20651435,121.55,121.44,6.05499]
[1644249143229,69.14734292,121.55,121.39,40.05565447]
[1644249143431,66.43282857,121.54,121.38,9.9]
[1644249143630,66.43282857,121.54,121.35,9.9]
[1644249143631,112.68442857,121.54,121.35,9.9]
[1644249143830,2.14682857,121.53,121.36,6.05899]
[1644249144035,9.9,121.53,121.36,7.96252794]
[1644249144233,70.4315,121.54,121.37,24.16003794]
[1644249144533,16.86220869,121.52,121.39,47.68016042]
[1644249144735,29.79620869,121.52,121.39,57.58016042]
[1644249145932,80.06620869,121.52,121.39,9.9]
[1644249146232,2.14682857,121.51,121.39,15.95749]
[1644249146433,6.26282857,121.51,121.39,15.95749]
[1644249146633,4.116,121.51,121.39,15.95749]
[1644249146834,7.20651435,121.5,121.4,40.69661179]
[1644249147134,70.4315,121.54,121.42,37.91912659]
[1644249147135,4.116,121.52,121.42,37.91912659]
[1644249147335,70.4315,121.54,121.43,6.05549]
[1644249147535,70.4315,121.54,121.43,7.95902794]
[1644249147734,70.4315,121.54,121.44,1.90353794]
[1644249147935,70.4315,121.54,121.45,6.0545]
[1644249148335,70.4315,121.54,121.45,7.95803794]
[1644249148536,70.4315,121.54,121.45,6.0545]
[1644249148836,19.45437656,121.53,121.45,6.0545]
[1644249150360,18.45437656,121.53,121.45,6.0545]
[1644249153164,18.45437656,121.53,121.37,9.9]
[1644249153165,149.0,121.52,121.37,9.9]
[1644249153365,187.3289,121.52,121.35,9.9]
[1644249153563,2.14682857,121.51,121.35,9.9]
[1644249153763,13.42361205,121.5,121.36,44.18176637]
[1644249154265,13.42361205,121.5,121.36,1.90353794]
[1644249154464,13.42361205,121.5,121.34,9.9]
[1644249154465,88.10174062,121.5,121.34,9.9]
[1644249154769,4.117,121.49,121.31,9.9]
[1644249154963,0.31005525,121.46,121.31,6.06148]